bitfinex-derivatives/quotes_BTCF0:USTF0_20230401
["timestamp","ask_amount","ask_price","bid_price","bid_amount"]
[1680361360658,0.3017,28311.0,28307.0,0.49879143]
[1680361360855,0.3517,28311.0,28307.0,0.49879143]
[1680361361256,0.002,28310.0,28307.0,0.49879143]
[1680361361555,0.002,28310.0,28307.0,0.49579143]
[1680361361556,0.052,28310.0,28307.0,0.49579143]
[1680361361762,0.05,28310.0,28307.0,0.49879143]
[1680361362158,0.3007,28308.0,28307.0,0.49879143]
[1680361362365,0.3889,28308.0,28307.0,0.003]
[1680361363656,0.3007,28308.0,28307.0,0.003]
[1680361363859,0.05,28309.0,28307.0,0.003]
[1680361364262,0.1401,28310.0,28307.0,0.003]
[1680361364862,0.0891,28310.0,28307.0,0.003]
[1680361365061,0.001,28310.0,28308.0,0.0882]
[1680361365263,0.3007,28311.0,28309.0,0.05]
[1680361365571,0.3007,28311.0,28308.0,0.49753561]
[1680361365768,0.1756,28309.0,28306.0,0.088574]
[1680361365966,0.477,28307.0,28306.0,0.088574]
[1680361366873,0.477,28307.0,28306.0,0.090574]
[1680361367867,0.479,28307.0,28306.0,0.090574]
[1680361374475,0.479,28307.0,28306.0,0.08756997]
[1680361377285,0.478,28307.0,28306.0,0.08756997]
[1680361377781,0.8132,28307.0,28306.0,9.97e-06]
[1680361377977,0.8122,28307.0,28306.0,9.97e-06]
[1680361378176,1.1649,28307.0,28306.0,9.97e-06]
[1680361378585,0.8122,28307.0,28306.0,9.97e-06]
[1680361379390,0.8122,28307.0,28295.0,0.1404378]
[1680361379391,0.3527,28299.0,28293.0,0.06327273]
[1680361379590,0.4,28300.0,28291.0,0.06327273]
[1680361379591,0.7778,28294.0,28291.0,0.06327273]
[1680361379889,0.7007,28289.0,28288.0,0.06328921]
[1680361380081,0.21629008,28278.0,28272.0,0.16881973]
[1680361380386,0.4,28267.0,28265.0,0.29545204]
[1680361380583,0.3507,28277.0,28260.0,0.08776139]
[1680361380584,0.7777,28266.0,28260.0,0.08776139]
[1680361380889,0.3527,28260.0,28252.0,0.21113245]
[1680361381186,0.9541,28253.0,28232.0,0.6648]
[1680361381382,0.6014,28246.0,28237.0,0.3007]
[1680361381577,0.1756,28239.0,28232.0,0.6128]
[1680361381772,0.1761,28233.0,28225.0,0.3007]
[1680361381982,0.0888,28243.0,28240.0,0.55]
[1680361382181,0.0888,28243.0,28224.0,0.6]
[1680361382182,0.0877,28244.0,28239.0,0.0882]
[1680361382383,4.15887013,28252.0,28224.0,0.3987]
[1680361382384,0.6014,28240.0,28224.0,0.3987]
[1680361382683,0.0013,28233.0,28226.0,0.3007]
[1680361382883,0.7,28245.0,28226.0,0.3007]
[1680361382884,0.3007,28236.0,28229.0,0.6994]
[1680361383082,0.0013,28237.0,28233.0,0.55]
[1680361383386,0.0013,28246.0,28237.0,0.55]
[1680361383586,0.0013,28246.0,28244.0,0.3007]
[1680361383778,0.4,28255.0,28245.0,0.1417]
[1680361383779,0.3007,28255.0,28245.0,0.1417]
[1680361384082,1.27414547,28260.0,28254.0,0.3007]
[1680361384285,0.8429,28268.0,28259.0,0.3007]
[1680361384585,0.3007,28268.0,28263.0,0.6014]
[1680361384786,0.1417,28267.0,28263.0,0.3007]
[1680361384983,0.1417,28267.0,28266.0,0.3007]
[1680361385281,0.1414,28270.0,28266.0,0.8507]
[1680361385489,0.1405,28276.0,28269.0,0.9914]
[1680361385682,0.3007,28278.0,28274.0,0.3007]
[1680361385892,0.3007,28281.0,28278.0,0.55]
[1680361386187,0.56827437,28284.0,28280.0,0.55]
[1680361386386,0.4421,28284.0,28279.0,0.40559949]
[1680361386586,0.4421,28284.0,28278.0,0.1917]
[1680361386788,0.3007,28284.0,28280.0,0.1417]
[1680361387087,0.3007,28290.0,28284.0,0.6915]
[1680361387289,0.3007,28290.0,28289.0,0.1407]
[1680361387491,0.3007,28290.0,28286.0,0.2808]
[1680361387879,0.3277,28290.0,28286.0,0.2808]
[1680361388088,0.3007,28287.0,28278.0,0.3007]
[1680361388390,0.6014,28284.0,28279.0,0.55]
[1680361388589,0.3007,28288.0,28285.0,0.55]
[1680361388896,0.027,28290.0,28285.0,0.55]
[1680361389184,0.02,28287.0,28286.0,0.45162228]
[1680361389785,0.02,28287.0,28286.0,0.75232228]
[1680361390388,0.027,28288.0,28286.0,0.75232228]
[1680361390790,0.027,28287.0,28286.0,0.75232228]
[1680361390989,0.05,28291.0,28286.0,0.75232228]
[1680361391187,0.3007,28292.0,28286.0,0.75232228]
[1680361391487,0.012,28288.0,28286.0,0.75432228]
[1680361391687,0.3007,28292.0,28286.0,0.75232228]
[1680361391888,0.012,28291.0,28286.0,0.75432228]
[1680361392090,0.05,28290.0,28286.0,0.75432228]
[1680361392285,0.012,28291.0,28286.0,0.75432228]
[1680361392585,0.3007,28294.0,28290.0,0.3007]
[1680361392787,0.3007,28298.0,28291.0,0.55]
[1680361392986,0.3007,28298.0,28294.0,0.8327]
[1680361393391,0.3007,28298.0,28295.0,0.38317333]
[1680361393690,0.3007,28303.0,28297.0,0.2826]
[1680361393994,0.3007,28303.0,28299.0,0.2827]
[1680361394185,0.3007,28303.0,28302.0,0.2808]
[1680361394387,0.13914094,28301.0,28300.0,0.40984515]
[1680361394588,0.13914094,28301.0,28300.0,0.0017299]
[1680361394787,0.13914094,28301.0,28297.0,0.2847]
[1680361394988,0.3007,28299.0,28291.0,0.55]
[1680361395189,0.3007,28292.0,28289.0,0.55]
[1680361395487,0.05,28291.0,28287.0,0.05006]
[1680361395691,0.05,28291.0,28287.0,6e-05]
[1680361395895,0.3007,28292.0,28288.0,0.68093079]
[1680361396089,0.3007,28292.0,28288.0,0.38023079]
[1680361396495,0.05,28291.0,28288.0,0.38023079]
[1680361396693,0.3007,28289.0,28288.0,0.00174686]
[1680361396999,0.05,28288.0,28282.0,0.05]
[1680361397197,0.3007,28283.0,28280.0,0.05]
[1680361397593,0.3007,28286.0,28280.0,0.05]
[1680361397788,0.3007,28286.0,28281.0,0.39501198]
[1680361397994,0.3007,28286.0,28282.0,0.05]
[1680361398397,0.001,28283.0,28282.0,0.05]
[1680361398797,0.3007,28286.0,28282.0,0.44198354]
[1680361398998,0.3007,28289.0,28287.0,0.55]
[1680361399202,0.3007,28296.0,28290.0,0.55]
[1680361399501,0.3007,28296.0,28291.0,0.3007]
[1680361399702,0.13914094,28301.0,28294.0,0.3007]
[1680361399899,0.05,28300.0,28295.0,0.05]
[1680361400202,0.05,28300.0,28295.0,0.45262674]
[1680361400404,0.05,28300.0,28294.0,0.39444917]
[1680361400702,0.18914094,28301.0,28295.0,0.052]
[1680361400901,0.05,28300.0,28295.0,0.052]
[1680361401202,0.13914094,28301.0,28296.0,0.38808746]
[1680361401398,0.13914094,28301.0,28297.0,0.05]
[1680361401795,0.13914094,28301.0,28298.0,0.4084152]
[1680361401998,0.05,28300.0,28298.0,0.31925829]
[1680361402303,0.05,28300.0,28299.0,0.05]
[1680361402797,0.01899747,28301.0,28299.0,0.3872286]
[1680361402999,0.3007,28307.0,28300.0,0.05]
[1680361403202,0.3007,28307.0,28300.0,0.3507]
[1680361403399,0.05,28306.0,28300.0,0.3007]
[1680361403595,0.05,28306.0,28301.0,0.05]
[1680361403797,0.5833,28302.0,28299.0,0.002]
[1680361404001,0.3007,28300.0,28289.0,0.2827]
[1680361404303,0.05,28296.0,28292.0,0.05]
[1680361404701,0.05,28296.0,28293.0,0.39844858]
[1680361405299,0.3007,28297.0,28293.0,0.39844858]
[1680361405499,0.3007,28297.0,28293.0,0.40044858]
[1680361405694,0.3007,28300.0,28294.0,0.3007]
[1680361406006,0.05,28299.0,28295.0,0.05]
[1680361406305,0.05,28299.0,28294.0,0.3007]
[1680361406611,0.2824,28305.0,28297.0,0.3007]
[1680361406906,0.05,28304.0,28298.0,0.05]
[1680361407098,0.05,28304.0,28297.0,0.3007]
[1680361408205,0.5823,28303.0,28297.0,0.002]
[1680361408401,0.05,28302.0,28297.0,0.002]
[1680361409209,0.2826,28299.0,28297.0,0.001]
[1680361409405,0.2826,28299.0,28298.0,0.00148688]
[1680361409606,0.3007,28300.0,28297.0,0.001]
[1680361409908,0.05,28299.0,28298.0,0.0014869]
[1680361410111,0.05,28299.0,28297.0,0.001]
[1680361410712,0.075,28299.0,28297.0,0.001]
[1680361411508,0.05,28298.0,28289.0,0.3007]
[1680361411807,0.05,28293.0,28290.0,0.00188329]
[1680361412200,0.05,28293.0,28285.0,0.3007]
[1680361412400,0.05,28293.0,28286.0,0.05]
[1680361413713,0.05,28294.0,28286.0,0.05]
[1680361414009,0.027,28293.0,28286.0,0.05]
[1680361414314,0.05,28292.0,28286.0,0.05]
[1680361414510,0.027,28293.0,28289.0,0.3007]
[1680361414710,0.027,28293.0,28290.0,0.05]
[1680361414910,0.027,28293.0,28290.0,0.43579676]
[1680361415114,0.3096,28293.0,28289.0,0.3007]
[1680361415314,0.3007,28292.0,28289.0,0.3007]
[1680361415608,0.05,28291.0,28289.0,0.3007]
[1680361416210,0.05,28291.0,28285.0,0.3007]
[1680361417111,0.077,28291.0,28285.0,0.3007]
[1680361417716,0.077,28291.0,28286.0,0.05]
[1680361417917,0.027,28291.0,28286.0,0.05]
[1680361418219,0.3507,28290.0,28285.0,0.3007]
[1680361418517,0.05,28290.0,28286.0,0.05]
[1680361418916,0.027,28291.0,28286.0,0.05]
[1680361419114,0.027,28291.0,28288.0,0.3007]
[1680361419313,0.05,28297.0,28289.0,0.05]
[1680361419513,0.027,28291.0,28289.0,0.42193029]
[1680361421316,0.05,28296.0,28289.0,0.42193029]
[1680361421510,0.027,28291.0,28289.0,0.42193029]
[1680361421712,0.027,28291.0,28290.0,0.3007]
[1680361421907,0.027,28291.0,28290.0,0.3507]
[1680361422113,0.027,28291.0,28290.0,0.74797864]
[1680361422315,0.027,28291.0,28290.0,0.3507]
[1680361422718,0.05,28298.0,28290.0,0.3007]
[1680361422918,0.027,28291.0,28290.0,0.3007]
[1680361423121,0.05,28298.0,28290.0,0.6014]
[1680361423418,0.05,28298.0,28293.0,0.3007]
[1680361423624,0.05,28297.0,28294.0,0.05]
[1680361423923,1.0901,28304.0,28296.0,0.3007]
[1680361424222,0.027,28298.0,28296.0,0.3007]
[1680361425316,0.05,28297.0,28293.0,0.3017]
[1680361426016,0.05,28299.0,28293.0,0.3007]
[1680361426217,0.2824,28300.0,28296.0,0.001]
[1680361426420,0.2824,28300.0,28294.0,0.05]
[1680361426717,0.027,28297.0,28294.0,0.05]
[1680361426918,0.027,28297.0,28296.0,0.3007]
[1680361427121,0.05,28299.0,28297.0,0.05]
[1680361427317,0.05,28299.0,28296.0,0.3017]
[1680361428015,0.027,28300.0,28296.0,0.3017]
[1680361428218,0.3007,28298.0,28293.0,0.3007]
[1680361428419,0.027,28297.0,28294.0,0.001]
[1680361428613,0.3007,28295.0,28294.0,0.001]
[1680361428816,0.3007,28295.0,28290.0,0.3007]
[1680361429018,0.3007,28295.0,28294.0,0.00161993]
[1680361429225,0.3007,28295.0,28294.0,0.001]
[1680361429525,0.027,28297.0,28294.0,0.001]
[1680361429724,0.018,28295.0,28291.0,0.05]
[1680361430231,0.3187,28295.0,28294.0,0.001]
[1680361430414,0.018,28295.0,28294.0,0.001]
[1680361431321,0.018,28295.0,28293.0,0.6334]
[1680361431523,0.018,28295.0,28293.0,1.1834]
[1680361432021,0.12617437,28306.0,28294.0,1.03719351]
[1680361432321,0.12617437,28304.0,28299.0,0.3007]
[1680361432526,0.05,28303.0,28300.0,0.05]
[1680361432820,0.42687437,28305.0,28300.0,0.05]
[1680361433021,0.12617437,28306.0,28300.0,0.05]
[1680361433825,0.05,28305.0,28300.0,0.05]
[1680361434127,0.05,28305.0,28301.0,0.40742291]
[1680361434423,0.12617437,28306.0,28302.0,0.05]
[1680361434621,0.014,28304.0,28302.0,0.3507]
[1680361435025,0.014,28305.0,28302.0,0.3507]
[1680361435522,0.014,28304.0,28302.0,0.3517]
[1680361436024,0.014,28304.0,28302.0,0.9852]
[1680361436326,0.014,28305.0,28302.0,0.9862]
[1680361436525,0.014,28305.0,28302.0,1.2869]
[1680361436925,0.014,28305.0,28304.0,0.05]
[1680361437323,0.05,28309.0,28303.0,0.38930168]
[1680361437524,0.05,28309.0,28305.0,0.3007]
[1680361438123,0.05,28310.0,28305.0,0.3007]
[1680361438326,0.014,28309.0,28305.0,0.3007]
[1680361438526,0.05,28308.0,28305.0,0.3007]
[1680361438721,0.05,28308.0,28305.0,0.3027]
[1680361439227,0.014,28309.0,28305.0,0.3027]
[1680361441528,0.014,28309.0,28306.0,0.05]
[1680361442525,0.014,28309.0,28305.0,0.3027]
[1680361442732,0.014,28309.0,28306.0,0.05]
[1680361443231,0.014,28309.0,28306.0,0.052]
[1680361443422,0.014,28309.0,28306.0,0.002]
[1680361443620,0.014,28309.0,28306.0,0.052]
[1680361444021,0.014,28309.0,28305.0,0.3007]
[1680361444233,0.014,28309.0,28306.0,0.002]
[1680361444437,0.014,28309.0,28306.0,0.052]
[1680361444626,0.014,28309.0,28306.0,0.002]
[1680361444826,0.014,28309.0,28306.0,0.052]
[1680361445133,0.014,28309.0,28306.0,0.002]
[1680361447524,0.014,28309.0,28306.0,0.1426]
[1680361447732,0.014,28309.0,28306.0,0.1926]
[1680361447934,0.014,28309.0,28308.0,0.442]
[1680361449238,0.014,28309.0,28308.0,0.444]
[1680361450739,0.456,28309.0,28297.0,0.3007]
[1680361450933,0.456,28309.0,28299.0,0.1413]
[1680361450934,0.3007,28304.0,28299.0,0.1413]
[1680361451136,0.1406,28302.0,28297.0,0.3007]
[1680361451337,0.05,28301.0,28297.0,0.3007]
[1680361452728,0.05,28301.0,28297.0,0.3507]
[1680361452928,0.051,28301.0,28297.0,0.3007]
[1680361453128,0.001,28301.0,28297.0,0.3507]
[1680361453644,0.001,28301.0,28300.0,0.3007]
[1680361453940,0.001,28301.0,28300.0,0.3507]
[1680361454437,0.001,28301.0,28300.0,0.3007]
[1680361454744,0.001,28301.0,28300.0,0.3507]
[1680361455136,0.001,28301.0,28300.0,0.8447]
[1680361455339,0.05,28306.0,28301.0,0.05]
[1680361455539,0.1413,28307.0,28303.0,0.3007]
[1680361455741,0.1413,28307.0,28304.0,0.05]
[1680361455941,0.1412,28311.0,28305.0,0.1413]
[1680361456143,0.3007,28312.0,28310.0,0.1413]
[1680361456331,0.05,28315.0,28311.0,0.05]
[1680361456737,0.05,28315.0,28310.0,0.442]
[1680361457044,0.1906,28315.0,28311.0,0.05]
[1680361457237,0.4913,28315.0,28311.0,0.05]
[1680361457432,0.1906,28315.0,28310.0,0.3507]
[1680361457639,0.027,28311.0,28310.0,0.3507]
[1680361458142,0.2176,28315.0,28310.0,0.3507]
[1680361458343,0.1676,28315.0,28310.0,0.3507]
[1680361458543,0.1406,28315.0,28311.0,0.05]
[1680361459241,0.1676,28315.0,28311.0,0.05]
[1680361459444,0.1676,28315.0,28310.0,0.3507]
[1680361459850,0.1676,28315.0,28311.0,0.05]
[1680361460441,0.05,28314.0,28310.0,0.3007]
[1680361460846,0.1676,28315.0,28310.0,0.3507]
[1680361461045,0.05,28314.0,28310.0,0.3507]
[1680361461245,0.05,28314.0,28311.0,0.05]
[1680361461450,0.077,28314.0,28311.0,0.05]
[1680361461842,0.027,28314.0,28311.0,0.05]
[1680361462941,0.027,28314.0,28313.0,0.1413]
[1680361464543,0.12617437,28322.0,28313.0,0.1413]
[1680361464544,0.1405,28324.0,28313.0,0.936]
[1680361464737,0.3007,28323.0,28318.0,0.441]
[1680361464943,0.1406,28321.0,28318.0,0.3007]
[1680361465141,0.05,28320.0,28318.0,0.3007]
[1680361465641,0.1413,28319.0,28313.0,0.002]
[1680361465841,0.1412,28314.0,28313.0,0.002]
[1680361466948,0.05,28313.0,28306.0,0.442]
[1680361467149,0.1404,28312.0,28306.0,0.442]
[1680361467451,0.05,28311.0,28309.0,0.1413]
[1680361467652,0.05,28313.0,28309.0,0.1413]
[1680361468041,0.05,28313.0,28309.0,0.442]
[1680361468744,0.05,28314.0,28310.0,0.05]
[1680361469452,0.05,28314.0,28309.0,0.442]
[1680361469851,0.1413,28315.0,28309.0,0.442]
[1680361470047,0.05,28314.0,28310.0,0.05]
[1680361470743,0.1413,28318.0,28312.0,0.442]
[1680361470942,0.05,28319.0,28315.0,0.441]
[1680361471145,0.05,28319.0,28316.0,0.05]
[1680361471347,0.05,28320.0,28316.0,0.05]
[1680361471754,0.05,28320.0,28315.0,0.441]
[1680361472155,0.05,28320.0,28316.0,0.05]
[1680361472346,0.05,28320.0,28315.0,0.441]
[1680361472542,0.1404,28316.0,28315.0,0.002]
[1680361472950,0.1904,28316.0,28315.0,0.002]
[1680361473153,0.1904,28316.0,28312.0,0.3007]
[1680361473657,0.05,28315.0,28313.0,0.1413]
[1680361474445,0.05,28316.0,28313.0,0.1413]
[1680361475553,0.38271526,28326.0,28315.0,0.1406]
[1680361475554,0.05,28320.0,28315.0,0.1406]
[1680361476054,0.05,28320.0,28316.0,0.05]
[1680361476354,0.1413,28321.0,28316.0,0.05]
[1680361476752,0.1413,28321.0,28316.0,0.052]
[1680361476952,0.1913,28323.0,28317.0,0.1413]
[1680361477255,0.1913,28323.0,28318.0,0.05]
[1680361477754,0.1913,28323.0,28317.0,0.1913]
[1680361477950,0.1913,28323.0,28317.0,0.1413]
[1680361478456,0.1913,28323.0,28317.0,0.1433]
[1680361478856,0.1913,28323.0,28317.0,0.1413]
[1680361479156,0.1913,28323.0,28317.0,0.1433]
[1680361480851,0.1412,28319.0,28317.0,0.002]
[1680361481053,0.05,28318.0,28317.0,0.002]
[1680361481957,0.05,28318.0,28317.0,0.001]
[1680361483357,0.4911,28318.0,28306.0,0.35240816]
[1680361483561,0.1412,28310.0,28306.0,0.3007]
[1680361483861,0.05,28309.0,28306.0,0.3007]
[1680361484261,0.1412,28310.0,28306.0,0.3007]
[1680361484461,0.1412,28310.0,28307.0,0.05]
[1680361484761,0.05,28314.0,28308.0,0.1403]
[1680361484762,0.1913,28314.0,28308.0,0.1403]
[1680361484958,0.1913,28314.0,28309.0,0.05]
[1680361485154,0.1913,28314.0,28309.0,0.3507]
[1680361485856,0.1413,28314.0,28309.0,0.3507]
[1680361486060,0.1913,28314.0,28309.0,0.3507]
[1680361486258,0.1413,28314.0,28309.0,0.3507]
[1680361486463,0.3507,28318.0,28313.0,0.1413]
[1680361486660,0.442,28319.0,28313.0,0.1413]
[1680361486964,0.05,28318.0,28314.0,0.05]
[1680361487559,0.1413,28319.0,28313.0,0.1933]
[1680361487759,0.05,28318.0,28313.0,0.1933]
[1680361487961,0.05,28318.0,28314.0,0.052]
[1680361488763,0.05,28318.0,28314.0,0.05]
[1680361488975,0.05,28318.0,28313.0,0.1933]
[1680361489268,0.05,28318.0,28314.0,0.05]
[1680361489868,0.05,28318.0,28314.0,0.002]
[1680361490068,0.05,28318.0,28314.0,0.052]
[1680361490768,0.05,28318.0,28314.0,0.002]
[1680361490966,0.1413,28321.0,28315.0,0.442]
[1680361491172,0.05,28320.0,28318.0,0.3007]
[1680361491370,0.05,28320.0,28319.0,0.05]
[1680361491565,0.05,28320.0,28318.0,0.3007]
[1680361491972,0.1913,28321.0,28318.0,0.3007]
[1680361492172,0.05,28320.0,28318.0,0.3007]
[1680361493374,0.05,28320.0,28318.0,0.3027]
[1680361496375,0.1913,28321.0,28318.0,0.3027]
[1680361496876,0.05,28320.0,28318.0,0.3027]
[1680361497673,0.1913,28320.0,28318.0,0.002]
[1680361500675,0.3007,28319.0,28318.0,0.002]
[1680361500977,0.05,28319.0,28318.0,0.002]
[1680361502472,0.3507,28319.0,28318.0,0.002]
[1680361502672,0.4919,28319.0,28311.0,0.18350668]
[1680361502972,0.1413,28317.0,28311.0,0.18350668]
[1680361503172,0.05,28316.0,28311.0,0.18350668]
[1680361503674,0.05,28316.0,28311.0,0.18550668]
[1680361505276,0.05,28316.0,28311.0,0.18450668]
[1680361505479,0.055,28316.0,28311.0,0.18350668]
[1680361506873,0.005,28316.0,28312.0,0.05]
[1680361507282,0.005,28316.0,28312.0,0.09220668]
[1680361507677,0.005,28316.0,28315.0,0.1403]
[1680361507880,0.442,28322.0,28316.0,0.05]
[1680361507881,0.1413,28322.0,28316.0,0.05]
[1680361508072,0.05,28321.0,28318.0,0.3007]
[1680361508476,0.1413,28322.0,28318.0,0.3007]
[1680361508678,0.05,28321.0,28318.0,0.3007]
[1680361509084,0.061,28321.0,28318.0,0.3527]
[1680361509279,0.061,28321.0,28318.0,0.3027]
[1680361509486,0.05,28321.0,28318.0,0.3007]
[1680361509684,0.061,28321.0,28318.0,0.3027]
[1680361511985,0.011,28321.0,28318.0,0.3527]
[1680361512290,0.011,28321.0,28318.0,0.3027]
[1680361512488,0.1489,28321.0,28318.0,0.3027]
[1680361512689,0.0989,28321.0,28318.0,0.3027]
[1680361513390,0.05,28324.0,28320.0,0.4763]
[1680361513586,0.0882,28327.0,28323.0,0.3507]
[1680361513783,0.05,28326.0,28323.0,0.3007]
[1680361514186,0.1382,28327.0,28323.0,0.3507]
[1680361514687,0.0882,28327.0,28326.0,0.3007]
[1680361515491,0.0882,28327.0,28324.0,0.05]
[1680361515797,0.0882,28327.0,28326.0,0.002]
[1680361516800,0.0882,28327.0,28326.0,0.3027]
[1680361517096,0.1378,28329.0,28326.0,0.3027]
[1680361517397,0.0878,28329.0,28326.0,0.3027]
[1680361517786,0.05,28328.0,28326.0,0.3027]
[1680361518394,0.0878,28329.0,28326.0,0.3027]
[1680361518789,0.05,28328.0,28326.0,0.3027]
[1680361519202,0.0878,28329.0,28326.0,0.3027]
[1680361520399,0.0878,28329.0,28327.0,0.05]
[1680361520600,0.0878,28329.0,28326.0,0.3027]
[1680361520801,0.05,28328.0,28326.0,0.002]
[1680361522300,0.0879,28327.0,28326.0,0.002]
[1680361523598,0.3007,28328.0,28326.0,0.002]
[1680361523994,0.3507,28328.0,28326.0,0.002]
[1680361524201,0.05,28327.0,28326.0,0.002]
[1680361525002,0.3507,28328.0,28326.0,0.002]
[1680361525202,0.05,28327.0,28326.0,0.002]
[1680361525602,0.3007,28328.0,28326.0,0.002]
[1680361526003,0.05,28327.0,28325.0,0.05]
[1680361526199,0.05,28327.0,28326.0,0.002]
[1680361526396,0.3007,28328.0,28325.0,0.05]
[1680361526701,0.3007,28328.0,28326.0,0.002]
[1680361526902,0.3007,28328.0,28326.0,0.0895]
[1680361527503,0.3007,28328.0,28327.0,0.05]
[1680361527700,0.088,28330.0,28327.0,0.05]
[1680361528400,0.088,28330.0,28326.0,0.3902]
[1680361528600,0.088,28330.0,28327.0,0.05]
[1680361529103,0.088,28330.0,28327.0,0.052]
[1680361529607,0.088,28330.0,28327.0,0.002]
[1680361529809,0.088,28330.0,28328.0,0.37280886]
[1680361530006,0.05,28329.0,28327.0,0.002]
[1680361532508,0.088,28330.0,28327.0,0.002]
[1680361532899,0.1379,28332.0,28328.0,0.0883]
[1680361534108,0.1379,28332.0,28328.0,0.0903]
[1680361536910,0.0878,28331.0,28328.0,0.002]
[1680361537110,0.05,28330.0,28328.0,0.002]
[1680361538612,0.0878,28331.0,28328.0,0.002]
[1680361538806,0.05,28330.0,28328.0,0.002]
[1680361539410,0.0878,28331.0,28328.0,0.002]
[1680361539604,0.05,28330.0,28328.0,0.002]
[1680361541814,0.3507,28330.0,28328.0,0.002]
[1680361543110,0.3007,28330.0,28328.0,0.002]
[1680361543311,0.3507,28330.0,28328.0,0.002]
[1680361543512,0.0878,28331.0,28328.0,0.002]
[1680361543813,0.05,28330.0,28328.0,0.002]
[1680361544518,0.0878,28331.0,28328.0,0.002]
[1680361544714,0.48077276,28333.0,28328.0,0.002]
[1680361544715,0.35459839,28333.0,28330.0,0.088]
[1680361545013,0.0878,28335.0,28330.0,0.088]
[1680361545014,0.21397437,28335.0,28330.0,0.088]
[1680361545216,0.0878,28335.0,28330.0,0.088]
[1680361545411,0.05,28334.0,28330.0,0.088]
[1680361545607,0.05,28334.0,28330.0,0.09]
[1680361546811,0.05,28334.0,28330.0,0.14]
[1680361547007,0.05,28334.0,28330.0,0.09]
[1680361547211,0.05,28334.0,28330.0,0.14]
[1680361547419,0.05,28334.0,28330.0,0.09]
[1680361547612,0.21397437,28335.0,28330.0,0.14]
[1680361548324,0.21397437,28335.0,28331.0,0.05]
[1680361548712,0.0878,28335.0,28331.0,0.05]
[1680361549220,0.17617437,28336.0,28333.0,0.0875]
[1680361549420,0.12617437,28336.0,28334.0,0.05]
[1680361549617,0.17617437,28336.0,28333.0,0.0875]
[1680361550324,0.05,28335.0,28333.0,0.0875]
[1680361550522,0.17617437,28336.0,28333.0,0.0875]
[1680361550721,0.05,28335.0,28333.0,0.0875]
[1680361551122,0.05,28335.0,28334.0,0.002]
[1680361551324,0.17617437,28336.0,28334.0,0.052]
[1680361551629,0.17617437,28336.0,28333.0,0.0895]
[1680361551926,0.05,28335.0,28333.0,0.0895]
[1680361552122,0.17617437,28335.0,28333.0,0.0895]
[1680361552316,0.12617437,28335.0,28333.0,0.0895]
[1680361552522,0.12617437,28335.0,28334.0,0.002]
[1680361552722,0.12617437,28335.0,28334.0,0.052]
[1680361552922,0.12617437,28335.0,28333.0,0.0895]
[1680361553126,0.17617437,28336.0,28333.0,0.0895]
[1680361553427,0.12617437,28336.0,28333.0,0.0895]
[1680361553629,0.17617437,28336.0,28334.0,0.05]
[1680361553828,0.12617437,28335.0,28333.0,0.0895]
[1680361554030,0.17617437,28336.0,28333.0,0.0895]
[1680361554328,0.47687437,28336.0,28334.0,0.002]
[1680361554525,0.12617437,28335.0,28334.0,0.002]
[1680361554731,0.17617437,28335.0,28333.0,0.0895]
[1680361555032,0.05,28334.0,28333.0,0.0895]
[1680361555232,0.05,28334.0,28333.0,0.0875]
[1680361555727,0.138,28334.0,28329.0,0.0883]
[1680361555924,0.3007,28333.0,28329.0,0.0883]
[1680361556125,0.05,28332.0,28329.0,0.0883]
[1680361556427,0.3007,28333.0,28329.0,0.0883]
[1680361556428,0.3507,28333.0,28329.0,0.0883]
[1680361556727,0.05,28332.0,28329.0,0.0883]
[1680361556919,0.1374,28332.0,28328.0,0.0875]
[1680361557326,0.1374,28332.0,28329.0,0.002]
[1680361557728,0.1374,28332.0,28328.0,0.0895]
[1680361558336,0.1374,28332.0,28329.0,0.002]
[1680361558524,0.1374,28332.0,28329.0,0.05182481]
[1680361558727,0.1374,28332.0,28329.0,0.05]
[1680361558929,0.1374,28332.0,28322.0,0.04220668]
[1680361558930,0.8124,28330.0,28322.0,0.04220668]
[1680361559126,0.3886,28323.0,28321.0,6e-05]
[1680361559336,0.0876,28322.0,28321.0,6e-05]
[1680361559934,0.1376,28322.0,28321.0,6e-05]
[1680361560434,0.138,28322.0,28321.0,6e-05]
[1680361560832,0.139,28322.0,28321.0,6e-05]
[1680361561736,0.4397,28322.0,28317.0,0.04220668]
[1680361561930,0.0879,28319.0,28317.0,0.04220668]
[1680361562135,0.05,28318.0,28317.0,0.04220668]
[1680361563336,0.05,28318.0,28317.0,0.05020668]
[1680361563636,0.1382,28318.0,28316.0,0.04220668]
[1680361563840,0.1382,28318.0,28317.0,0.008]
[1680361563841,0.052,28318.0,28317.0,0.008]
[1680361564041,0.1399,28318.0,28317.0,0.008]